[Event "African Online-ch Women 2021"]
[Site "Online"]
[Date "2021.02.01"]
[Round "6.15"]
[White "Ibtihal Mohammed"]
[Black "Jambo, Linda"]
[Result "1-0"]
[ECO "C20"]
[WhiteElo "1491"]
[BlackElo "1478"]
[Annotator "NA RC"]
[PlyCount "123"]
[EventDate "2021.02.01"]
[EventType "swiss"]
[EventCountry "NET"]
[SourceTitle "playchess.com"]
[Source "ChessBase"]
[SourceQuality "1"]
[TimeControl "1500+10"]

1. e4 {[%emt 0:00:00]} e5 {[%emt 0:00:07]} 2. c3 {[%emt 0:00:04]} Nf6 {[%emt 0:00:05]} 3. d3 {[%emt 0:00:18]} h6 {[%emt 0:00:12]} 4. Nf3 {[%emt 0:00:06]} Nc6 {[%emt 0:00:06]} 5. h3 {[%emt 0:00:04]} Bc5 {[%emt 0:00:05]} 6. Be2 {[%emt 0:00:09]} O-O {[%emt 0:00:04]} 7. O-O {[%emt 0:00:04]} Re8 {[%emt 0:00:04]} 8. Nbd2 {[%emt 0:00:15]} d6 {[%emt 0:00:24]} 9. Nb3 {[%emt 0:00:04]} Bb6 {[%emt 0:00:08]} 10. a4 {[%emt 0:00:08]} a6 {[%emt 0:00:08]} 11. Re1 {[%emt 0:00:15]} Be6 {[%emt 0:00:15]} 12. Nbd2 {[%emt 0:00:10]} Ne7 {[%emt 0:01:12]} 13. b4 {[%emt 0:00:07]} Ng6 {[%emt 0:00:25]} 14. c4 {[%emt 0:00:15]} c6 {[%emt 0:00:38]} 15. Bb2 {[%emt 0:00:15]} Nf4 {[%emt 0:00:36]} 16. Bf1 {[%emt 0:00:08]} Nh7 {[%emt 0:01:33]} 17. Nb3 {[%emt 0:01:38]} Ng5 {[%emt 0:00:37]} 18. d4 {[%emt 0:01:15]} Nxf3+ {[%emt 0:04:25]} 19. Qxf3 {[%emt 0:00:07]} Ng6 {[%emt 0:00:24]} 20. d5 {[%emt 0:00:21]} cxd5 {[%emt 0:00:19]} 21. exd5 {[%emt 0:00:28]} Bc8 {[%emt 0:01:06]} 22. Bd3 {[%emt 0:00:05]} Qg5 {[%emt 0:00:52]} 23. Bc1 {[%emt 0:00:12]} Nh4 {[%emt 0:02:21]} 24. Bxg5 {[%emt 0:04:21]} Nxf3+ {[%emt 0:00:08]} 25. gxf3 {[%emt 0:00:04]} hxg5 {[%emt 0:00:03]} 26. Kg2 {[%emt 0:00:05]} g6 {[%emt 0:00:24]} 27. c5 {[%emt 0:00:39]} dxc5 {[%emt 0:00:21]} 28. bxc5 {[%emt 0:00:14]} Ba7 {[%emt 0:00:21]} 29. Rg1 {[%emt 0:01:11]} Kg7 {[%emt 0:00:27]} 30. Kh2 {[%emt 0:00:09]} Kf6 {[%emt 0:00:14]} 31. Rg3 {[%emt 0:00:16]} Rh8 {[%emt 0:00:53]} 32. Rag1 {[%emt 0:00:06]} Rh5 {[%emt 0:00:08]} 33. Be4 {[%emt 0:01:05]} Bf5 {[%emt 0:00:09]} 34. Kg2 {[%emt 0:01:07]} Rah8 {[%emt 0:00:38]} 35. Rh1 {[%emt 0:01:17]} Bd7 {[%emt 0:00:33]} 36. c6 {[%emt 0:00:11]} bxc6 {[%emt 0:00:05]} 37. dxc6 {[%emt 0:00:04]} Be6 {[%emt 0:00:08]} 38. Na5 {[%emt 0:00:22]} Bb6 {[%emt 0:01:20]} 39. Nb7 {[%emt 0:00:08]} a5 {[%emt 0:00:47]} 40. Bd3 {[%emt 0:00:23]} Bd5 {[%emt 0:03:04]} 41. Bb5 {[%emt 0:00:17]} Ke6 {[%emt 0:00:27]} 42. Rc1 {[%emt 0:02:40]} Rc8 {[%emt 0:00:45]} 43. Kf1 {[%emt 0:02:00]} f6 {[%emt 0:00:31]} 44. Ke2 {[%emt 0:00:09]} Rh4 {[%emt 0:00:04]} 45. Nc5+ {[%emt 0:00:35]} Kd6 {[%emt 0:00:43]} 46. Nd7 {[%emt 0:00:46]} Bxc6 {[%emt 0:00:15]} 47. Bxc6 {[%emt 0:00:08]} Rxc6 {[%emt 0:00:08]} 48. Rxc6+ {[%emt 0:00:04]} Kxc6 {[%emt 0:00:05]} 49. Nxf6 {[%emt 0:00:04]} Rxa4 {[%emt 0:00:05]} 50. Rxg5 {[%emt 0:00:08]} Ra2+ {[%emt 0:00:04]} 51. Kd3 {[%emt 0:00:19]} Rxf2 {[%emt 0:00:08]} 52. Ke4 {[%emt 0:00:12]} a4 {[%emt 0:00:05]} 53. Rxg6 {[%emt 0:00:04]} a3 {[%emt 0:00:04]} 54. Ng4+ {[%emt 0:00:43]} Kb5 {[%emt 0:00:05]} 55. Nxf2 {[%emt 0:00:11]} a2 {[%emt 0:00:03]} 56. Rg1 {[%emt 0:00:03]} Bxf2 {[%emt 0:00:18]} 57. Rd1 {[%emt 0:00:19]} Bd4 {[%emt 0:00:05]} 58. f4 {[%emt 0:00:06]} a1=Q {[%emt 0:00:34]} 59. Rxa1 {[%emt 0:00:05]} Bxa1 {[%emt 0:00:05]} 60. fxe5 {[%emt 0:00:02]} Kc6 {[%emt 0:00:22]} 61. Kf5 {[%emt 0:00:05]} Bxe5 {[%emt 0:00:51]} 62. Kxe5 {[%emt 0:00:04]} 1-0

[Event "African Online-ch Women 2021"]
[Site "Online"]
[Date "2021.02.01"]
[Round "7.3"]
[White "Miladi, Amen"]
[Black "Charinda, Kudzanayi"]
[Result "1-0"]
[ECO "B53"]
[WhiteElo "1802"]
[BlackElo "1710"]
[Annotator "NA RC"]
[PlyCount "107"]
[EventDate "2021.02.01"]
[EventType "swiss"]
[EventCountry "NET"]
[SourceTitle "playchess.com"]
[Source "ChessBase"]
[SourceQuality "1"]
[TimeControl "1500+10"]

1. e4 {[%emt 0:00:00]} c5 {[%emt 0:00:13]} 2. Nf3 {[%emt 0:00:03]} d6 {[%emt 0:00:03]} 3. d4 {[%emt 0:00:02]} cxd4 {[%emt 0:00:02]} 4. Qxd4 {[%emt 0:00:03]} Nc6 {[%emt 0:00:35]} 5. Bb5 {[%emt 0:00:03]} Bd7 {[%emt 0:00:03]} 6. Bxc6 {[%emt 0:00:03]} Bxc6 {[%emt 0:00:04]} 7. Nc3 {[%emt 0:00:02]} e6 {[%emt 0:00:16]} 8. Be3 {[%emt 0:00:05]} Nf6 {[%emt 0:00:07]} 9. O-O-O {[%emt 0:00:11]} Be7 {[%emt 0:00:11]} 10. Qd3 {[%emt 0:00:13]} Qc7 {[%emt 0:00:29]} 11. h3 {[%emt 0:00:08]} a6 {[%emt 0:00:15]} 12. Nd4 {[%emt 0:00:07]} Rc8 {[%emt 0:00:44]} 13. f4 {[%emt 0:00:19]} d5 {[%emt 0:00:59]} 14. e5 {[%emt 0:02:44]} Ne4 {[%emt 0:00:30]} 15. Rhf1 {[%emt 0:01:20]} Nxc3 {[%emt 0:00:28]} 16. Qxc3 {[%emt 0:00:03]} Bd7 {[%emt 0:01:33]} 17. Qxc7 {[%emt 0:00:27]} Rxc7 {[%emt 0:00:05]} 18. f5 {[%emt 0:00:44]} Bc5 {[%emt 0:00:47]} 19. fxe6 {[%emt 0:00:47]} Bxe6 {[%emt 0:00:24]} 20. Kb1 {[%emt 0:00:10]} Bxd4 {[%emt 0:00:06]} 21. Rxd4 {[%emt 0:00:20]} h6 {[%emt 0:00:36]} 22. Bd2 {[%emt 0:01:53]} Kd7 {[%emt 0:01:03]} 23. Ba5 {[%emt 0:01:23]} Rc6 {[%emt 0:00:14]} 24. Rd3 {[%emt 0:02:01]} Rhc8 {[%emt 0:01:17]} 25. Rc3 {[%emt 0:00:21]} Rxc3 {[%emt 0:01:19]} 26. Bxc3 {[%emt 0:00:03]} Rc4 {[%emt 0:00:11]} 27. Rd1 {[%emt 0:00:37]} Re4 {[%emt 0:00:44]} 28. Re1 {[%emt 0:00:40]} Rf4 {[%emt 0:00:29]} 29. Kc1 {[%emt 0:02:32]} Rf2 {[%emt 0:00:21]} 30. g4 {[%emt 0:00:23]} h5 {[%emt 0:00:36]} 31. gxh5 {[%emt 0:00:32]} Bxh3 {[%emt 0:00:54]} 32. Rg1 {[%emt 0:01:58]} Rg2 {[%emt 0:03:23]} 33. Rxg2 {[%emt 0:00:09]} Bxg2 {[%emt 0:00:04]} 34. e6+ {[%emt 0:00:37]} fxe6 {[%emt 0:02:15]} 35. Bxg7 {[%emt 0:00:04]} Be4 {[%emt 0:00:09]} 36. Be5 {[%emt 0:00:17]} Ke7 {[%emt 0:00:24]} 37. Kd2 {[%emt 0:00:07]} Kd7 {[%emt 0:00:38]} 38. c3 {[%emt 0:00:16]} Kc6 {[%emt 0:00:11]} 39. Ke3 {[%emt 0:00:57]} Kc5 {[%emt 0:00:11]} 40. Bd4+ {[%emt 0:00:03]} Kd6 {[%emt 0:00:21]} 41. Kf4 {[%emt 0:00:26]} Ke7 {[%emt 0:02:22]} 42. c4 {[%emt 0:00:10]} Bd3 {[%emt 0:00:49]} 43. c5 {[%emt 0:00:15]} Be4 {[%emt 0:01:09]} 44. b4 {[%emt 0:00:13]} Bc2 {[%emt 0:00:39]} 45. h6 {[%emt 0:00:38]} Bd3 {[%emt 0:00:35]} 46. a4 {[%emt 0:00:57]} Bh7 {[%emt 0:00:59]} 47. b5 {[%emt 0:00:09]} axb5 {[%emt 0:01:27]} 48. axb5 {[%emt 0:00:14]} Bd3 {[%emt 0:00:29]} 49. Kg5 {[%emt 0:00:30]} Bh7 {[%emt 0:00:37]} 50. Bf6+ {[%emt 0:00:42]} Kd7 {[%emt 0:00:32]} 51. Be5 {[%emt 0:00:03]} Ke7 {[%emt 0:00:07]} 52. c6 {[%emt 0:00:31]} bxc6 {[%emt 0:00:12]} 53. b6 {[%emt 0:00:04]} Kd7 {[%emt 0:00:22]} 54. b7 {[%emt 0:00:02]} 1-0

[Event "African Online-ch Women 2021"]
[Site "Online"]
[Date "2021.02.01"]
[Round "7.5"]
[White "Shah, Riya"]
[Black "Caxita, Esperanca"]
[Result "0-1"]
[ECO "D00"]
[WhiteElo "1559"]
[BlackElo "1882"]
[Annotator "NA RC"]
[PlyCount "60"]
[EventDate "2021.02.01"]
[EventType "swiss"]
[EventCountry "NET"]
[SourceTitle "playchess.com"]
[Source "ChessBase"]
[SourceQuality "1"]
[TimeControl "1500+10"]

1. d4 {[%emt 0:00:00]} d5 {[%emt 0:00:07]} 2. e3 {[%emt 0:00:02]} Nf6 {[%emt 0:00:05]} 3. f4 {[%emt 0:00:11]} Bg4 {[%emt 0:00:28]} 4. Nf3 {[%emt 0:00:07]} e6 {[%emt 0:00:24]} 5. Bd3 {[%emt 0:00:26]} c5 {[%emt 0:00:08]} 6. c3 {[%emt 0:00:03]} Nc6 {[%emt 0:00:05]} 7. O-O {[%emt 0:00:04] 7.0-0 scores better than 7.Nbd2.} cxd4 {[%emt 0:00:28]} 8. cxd4 {[%emt 0:00:04]} Bd6 {[%emt 0:00:03] [#]} 9. Qe1 $146 {[%emt 0:00:44]} ({Predecessor:} 9. Nc3 O-O 10. a3 Nd7 11. Qc2 h6 12. Ne5 Ncxe5 13. fxe5 Be7 14. h3 Bh5 15. Bd2 {½-½ (31) Alvarado M,J-Alba,J Guatemala 1992}) 9... a6 {[%emt 0:01:05]} 10. Ne5 {[%emt 0:00:10]} Bh5 {[%emt 0:01:00]} 11. Qg3 {[%emt 0:01:06]} Nb4 $1 {[%emt 0:01:51]} 12. Nc3 {[%emt 0:01:48]} Bg6 {[%emt 0:02:58]} 13. Bb1 {[%emt 0:03:18]} Bxe5 {[%emt 0:02:45]} 14. fxe5 {[%emt 0:00:16]} Ne4 {[%emt 0:00:04]} 15. Nxe4 {[%emt 0:00:04]} dxe4 {[%emt 0:00:07]} 16. Qg4 {[%emt 0:01:44]} Qd5 {[%emt 0:00:50]} 17. Bd2 {[%emt 0:00:21]} Nd3 {[%emt 0:00:19]} 18. Bc3 {[%emt 0:01:09]} O-O {[%emt 0:00:35]} 19. Bc2 {[%emt 0:01:08]} Rac8 {[%emt 0:00:46]} 20. a3 $19 {[%emt 0:00:18]} ({Better is} 20. Bb3 $15 Qd8 21. Rab1) 20... Nxb2 {[%emt 0:01:34]} 21. Bxb2 {[%emt 0:03:24]} Rxc2 {[%emt 0:00:08]} 22. Rab1 {[%emt 0:00:06]} Rfc8 {[%emt 0:00:26]} 23. Qd1 {[%emt 0:02:26]} Qb3 {[%emt 0:02:25]} 24. Ba1 {[%emt 0:02:35]} Qxe3+ {[%emt 0:00:12]} 25. Kh1 {[%emt 0:00:07]} Qg5 {[%emt 0:01:13]} 26. Rg1 {[%emt 0:00:11]} e3 {[%emt 0:00:13]} 27. Rxb7 {[%emt 0:00:23]} Be4 {[%emt 0:00:24]} 28. Qf1 {[%emt 0:00:20]} Bxb7 {[%emt 0:00:21]} 29. a4 {[%emt 0:01:33]} e2 {[%emt 0:00:34]} 30. Qf2 {[%emt 0:00:24]} e1=Q {[%emt 0:00:12]} 0-1

[Event "African Online-ch Women 2021"]
[Site "Online"]
[Date "2021.02.01"]
[Round "7.7"]
[White "Madelta Glenda"]
[Black "Rodriguez Guevara, Celia M."]
[Result "1/2-1/2"]
[ECO "D00"]
[WhiteElo "1420"]
[BlackElo "1849"]
[Annotator "NA RC"]
[PlyCount "144"]
[EventDate "2021.02.01"]
[EventType "swiss"]
[EventCountry "NET"]
[SourceTitle "playchess.com"]
[Source "ChessBase"]
[SourceQuality "1"]
[TimeControl "1500+10"]

1. d4 {[%emt 0:00:00]} d5 {[%emt 0:00:07]} 2. Nc3 {[%emt 0:00:04]} Nf6 {[%emt 0:00:09]} 3. Bf4 {[%emt 0:00:04]} a6 {[%emt 0:00:07]} 4. e3 {[%emt 0:00:04]} e6 {[%emt 0:00:07]} 5. Bd3 {[%emt 0:00:06]} b5 {[%emt 0:00:32]} 6. a3 {[%emt 0:00:10]} Bb7 {[%emt 0:00:06]} 7. Nf3 {[%emt 0:00:05]} Nbd7 {[%emt 0:00:25]} 8. h3 {[%emt 0:00:08]} Ne4 {[%emt 0:02:28]} 9. O-O {[%emt 0:00:21]} Be7 {[%emt 0:00:52]} 10. Ne5 {[%emt 0:00:09]} Nxe5 {[%emt 0:03:04]} 11. Bxe5 {[%emt 0:01:10]} f6 {[%emt 0:01:38]} 12. Bh2 {[%emt 0:00:15]} Nxc3 {[%emt 0:01:23]} 13. bxc3 {[%emt 0:00:07]} O-O {[%emt 0:01:13]} 14. a4 {[%emt 0:00:25]} c6 {[%emt 0:00:16]} 15. Qe2 {[%emt 0:07:51]} Bd6 {[%emt 0:01:12]} 16. f4 {[%emt 0:00:32]} c5 {[%emt 0:00:28]} 17. dxc5 {[%emt 0:00:09]} Bxc5 {[%emt 0:00:09]} 18. axb5 {[%emt 0:00:07]} axb5 {[%emt 0:00:28]} 19. Rxa8 {[%emt 0:00:45]} Bxa8 {[%emt 0:00:25]} 20. Bxb5 {[%emt 0:00:10]} Qb6 {[%emt 0:00:12]} 21. Re1 {[%emt 0:00:34]} Bxe3+ {[%emt 0:00:53]} 22. Kh1 {[%emt 0:00:09]} e5 {[%emt 0:04:57]} 23. fxe5 {[%emt 0:00:46]} fxe5 {[%emt 0:00:24]} 24. Bxe5 {[%emt 0:01:04]} Bc5 {[%emt 0:05:24]} 25. Bg3 {[%emt 0:05:57]} Qg6 {[%emt 0:01:57]} 26. Qd3 {[%emt 0:01:43]} Qb6 {[%emt 0:00:03]} 27. Rf1 {[%emt 0:02:09]} Rxf1+ {[%emt 0:00:09]} 28. Qxf1 {[%emt 0:00:05]} Qa7 {[%emt 0:00:15]} 29. Qe1 {[%emt 0:00:39]} Qf7 {[%emt 0:00:04]} 30. Bd3 {[%emt 0:00:22]} g6 {[%emt 0:00:11]} 31. Be5 {[%emt 0:00:32]} Bc6 {[%emt 0:00:03]} 32. Qg3 {[%emt 0:00:05]} Bb7 {[%emt 0:00:13]} 33. Qh4 {[%emt 0:00:19]} Be7 {[%emt 0:00:06]} 34. Qe1 {[%emt 0:00:38]} Bd8 {[%emt 0:00:02]} 35. Bd4 {[%emt 0:00:14]} Bc7 {[%emt 0:00:04]} 36. Qh4 {[%emt 0:00:33]} Bc6 {[%emt 0:00:13]} 37. Qe1 {[%emt 0:00:26]} Bd7 {[%emt 0:00:06]} 38. Qe3 {[%emt 0:00:28]} Bc6 {[%emt 0:00:04]} 39. Be2 {[%emt 0:00:03]} Bb8 {[%emt 0:00:06]} 40. Bg4 {[%emt 0:00:15]} Qf1+ {[%emt 0:00:10]} 41. Qg1 {[%emt 0:00:07]} Qxg1+ {[%emt 0:00:20]} 42. Kxg1 {[%emt 0:00:04]} Bg3 {[%emt 0:00:07]} 43. Kf1 {[%emt 0:00:03]} Bb5+ {[%emt 0:00:05]} 44. Be2 {[%emt 0:00:07]} Bc4 {[%emt 0:00:02]} 45. Bxc4 {[%emt 0:00:06]} dxc4 {[%emt 0:00:03]} 46. Ke2 {[%emt 0:00:04]} h6 {[%emt 0:00:07]} 47. Ke3 {[%emt 0:00:03]} Kf7 {[%emt 0:00:10]} 48. Ke4 {[%emt 0:00:13]} Ke6 {[%emt 0:00:02]} 49. Bg7 {[%emt 0:00:19]} h5 {[%emt 0:00:03]} 50. Bh6 {[%emt 0:00:21]} Be5 {[%emt 0:00:12]} 51. Bf4 {[%emt 0:00:11]} Bxc3 {[%emt 0:00:03]} 52. g3 {[%emt 0:00:10]} Bf6 {[%emt 0:00:10]} 53. h4 {[%emt 0:00:03]} Bc3 {[%emt 0:00:09]} 54. Be3 {[%emt 0:00:18]} Be5 {[%emt 0:00:06]} 55. Bf4 {[%emt 0:00:03]} Bf6 {[%emt 0:00:03]} 56. Be3 {[%emt 0:00:45]} Be5 {[%emt 0:00:08]} 57. Bf4 {[%emt 0:00:04]} Bc3 {[%emt 0:00:03]} 58. Bg5 {[%emt 0:00:08]} Bb2 {[%emt 0:00:05]} 59. Bf4 {[%emt 0:00:08]} Bf6 $11 {[%emt 0:00:05]} 60. Be3 {[%emt 0:00:03]} Kd6 {[%emt 0:00:06]} 61. Bd4 {[%emt 0:00:11]} Be7 {[%emt 0:00:07]} 62. Be5+ {[%emt 0:01:17]} Kc5 {[%emt 0:00:07]} 63. Bc3 {[%emt 0:00:10]} Kd6 {[%emt 0:00:04]} 64. Kd4 {[%emt 0:00:09]} Ke6 {[%emt 0:00:39]} 65. Kxc4 {[%emt 0:00:10]} Kf5 {[%emt 0:00:03]} 66. Kd5 {[%emt 0:00:05]} Kg4 {[%emt 0:00:07]} 67. Be5 {[%emt 0:00:03]} g5 {[%emt 0:00:16]} 68. hxg5 {[%emt 0:00:09]} Kxg5 {[%emt 0:00:07]} 69. c4 {[%emt 0:00:04]} Kg4 {[%emt 0:00:19]} 70. c5 {[%emt 0:01:00]} Bxc5 {[%emt 0:00:09]} 71. Kxc5 {[%emt 0:00:03]} h4 {[%emt 0:00:03]} 72. gxh4 {[%emt 0:00:03]} Kxh4 {[%emt 0:00:01]} 1/2-1/2

[Event "African Online-ch Women 2021"]
[Site "Online"]
[Date "2021.02.01"]
[Round "7.8"]
[White "Vilhete, Vania Fausto Da T."]
[Black "Ndirangu, Joyce Nyaruai"]
[Result "0-1"]
[ECO "E14"]
[WhiteElo "1799"]
[BlackElo "1659"]
[Annotator "NA RC"]
[PlyCount "162"]
[EventDate "2021.02.01"]
[EventType "swiss"]
[EventCountry "NET"]
[SourceTitle "playchess.com"]
[Source "ChessBase"]
[SourceQuality "1"]
[TimeControl "1500+10"]

1. d4 {[%emt 0:00:00]} Nf6 {[%emt 0:00:07]} 2. c4 {[%emt 0:00:05]} e6 {[%emt 0:00:15]} 3. Nf3 {[%emt 0:00:06]} b6 {[%emt 0:00:29]} 4. e3 {[%emt 0:00:05]} Bb7 {[%emt 0:00:02]} 5. Bd3 {[%emt 0:00:05]} c5 {[%emt 0:00:07]} 6. O-O {[%emt 0:00:06]} Nc6 {[%emt 0:00:34]} 7. Nc3 {[%emt 0:00:09]} cxd4 {[%emt 0:00:20]} 8. exd4 {[%emt 0:00:05]} d5 {[%emt 0:00:08]} 9. b3 {[%emt 0:01:11]} Be7 {[%emt 0:00:16]} 10. Bb2 {[%emt 0:00:10]} O-O {[%emt 0:02:26]} 11. Rc1 {[%emt 0:00:14]} dxc4 {[%emt 0:00:20]} 12. Bxc4 {[%emt 0:00:49]} Nb4 {[%emt 0:00:54]} 13. Ne5 {[%emt 0:01:25]} a6 {[%emt 0:00:21]} 14. Ng4 {[%emt 0:00:54]} b5 {[%emt 0:00:23]} 15. Be2 {[%emt 0:00:11]} Nxg4 {[%emt 0:01:41]} 16. Bxg4 {[%emt 0:00:12]} Bf6 {[%emt 0:00:18]} 17. a3 {[%emt 0:00:30]} Nc6 {[%emt 0:01:07]} 18. Ne2 {[%emt 0:00:36]} Qd6 {[%emt 0:02:03]} 19. Bf3 {[%emt 0:00:41]} Rfd8 {[%emt 0:00:13]} 20. Qc2 {[%emt 0:06:46]} Rac8 {[%emt 0:00:14]} 21. Bxc6 {[%emt 0:00:34]} Rxc6 {[%emt 0:00:19]} 22. Qd3 {[%emt 0:01:12]} e5 {[%emt 0:01:18]} 23. Ng3 {[%emt 0:01:17]} Rxc1 {[%emt 0:00:17]} 24. Rxc1 {[%emt 0:00:35]} exd4 {[%emt 0:00:38]} 25. Rd1 {[%emt 0:01:07]} Qd5 {[%emt 0:01:04]} 26. f3 {[%emt 0:00:15]} h6 {[%emt 0:01:58]} 27. Nf5 {[%emt 0:00:38]} Qc5 {[%emt 0:01:37]} 28. b4 {[%emt 0:01:47]} Qb6 {[%emt 0:00:46]} 29. Kh1 {[%emt 0:02:04]} Qe6 {[%emt 0:02:33]} 30. Nxd4 {[%emt 0:01:21]} Qa2 {[%emt 0:00:23]} 31. Ba1 {[%emt 0:00:47]} Qf2 {[%emt 0:02:12]} 32. Qd2 {[%emt 0:01:25]} Qh4 {[%emt 0:00:46]} 33. Qe3 {[%emt 0:00:10]} Qh5 {[%emt 0:02:31]} 34. Re1 {[%emt 0:00:29]} Bd5 {[%emt 0:00:24]} 35. Nb3 {[%emt 0:00:27]} Bg5 {[%emt 0:00:33]} 36. Qe5 {[%emt 0:00:28]} Qg6 {[%emt 0:00:09]} 37. Nc5 {[%emt 0:00:15]} Bf6 {[%emt 0:00:21]} 38. Qc7 {[%emt 0:00:21]} Bc4 {[%emt 0:00:33]} 39. Bxf6 {[%emt 0:00:18]} Qxf6 {[%emt 0:00:03]} 40. h3 {[%emt 0:00:13]} Rd2 {[%emt 0:00:09]} 41. Ne4 {[%emt 0:00:14]} Qd8 {[%emt 0:00:09]} 42. Qxd8+ {[%emt 0:00:08]} Rxd8 {[%emt 0:00:03]} 43. Nc5 {[%emt 0:00:05]} Ra8 {[%emt 0:00:13]} 44. Nd7 {[%emt 0:00:26]} Ra7 {[%emt 0:00:13]} 45. Re8+ {[%emt 0:00:14]} Kh7 {[%emt 0:00:02]} 46. Nf8+ {[%emt 0:00:06]} Kh8 {[%emt 0:00:05]} 47. Nd7+ {[%emt 0:00:16]} Kh7 {[%emt 0:00:02]} 48. Nb6 {[%emt 0:00:06]} Be6 {[%emt 0:00:04]} 49. Rd8 {[%emt 0:00:07]} a5 {[%emt 0:00:11]} 50. Ra8 {[%emt 0:00:23]} Rxa8 {[%emt 0:00:36]} 51. Nxa8 {[%emt 0:00:09]} axb4 {[%emt 0:00:02]} 52. axb4 {[%emt 0:00:04]} Kg6 {[%emt 0:00:03]} 53. Kg1 {[%emt 0:00:06]} Kf5 {[%emt 0:00:03]} 54. Nc7 {[%emt 0:00:06]} Bc4 {[%emt 0:00:03]} 55. Kf2 {[%emt 0:00:05]} Ke5 {[%emt 0:00:12]} 56. Ne8 {[%emt 0:00:07]} g5 {[%emt 0:00:06]} 57. g3 {[%emt 0:00:06]} Kd4 {[%emt 0:00:13]} 58. Nd6 {[%emt 0:00:18]} Kc3 {[%emt 0:00:02]} 59. Nf5 {[%emt 0:00:04]} h5 {[%emt 0:00:06]} 60. Ke3 {[%emt 0:00:20]} Kxb4 {[%emt 0:00:05]} 61. Kd4 {[%emt 0:00:07]} Be6 {[%emt 0:00:19]} 62. Nd6 {[%emt 0:00:39]} Ka4 {[%emt 0:00:15]} 63. Kc3 {[%emt 0:00:07]} b4+ {[%emt 0:00:03]} 64. Kb2 {[%emt 0:00:06]} b3 {[%emt 0:00:04]} 65. h4 {[%emt 0:00:07]} gxh4 {[%emt 0:00:05]} 66. gxh4 {[%emt 0:00:03]} Kb4 {[%emt 0:00:02]} 67. Ne4 {[%emt 0:00:12]} Kc4 {[%emt 0:00:13]} 68. Nd2+ {[%emt 0:00:04]} Kb4 {[%emt 0:00:03]} 69. Ne4 {[%emt 0:00:05]} Bd5 {[%emt 0:00:02]} 70. Ng5 {[%emt 0:00:03]} Kc4 {[%emt 0:00:16]} 71. f4 {[%emt 0:00:07]} Kd4 {[%emt 0:00:05]} 72. Nh3 {[%emt 0:00:10]} Ke3 {[%emt 0:00:08]} 73. f5 {[%emt 0:00:04]} Kf3 {[%emt 0:00:02]} 74. Ng5+ {[%emt 0:00:05]} Kg4 {[%emt 0:00:04]} 75. Nh7 {[%emt 0:00:08]} Kxf5 {[%emt 0:00:09]} 76. Ng5 {[%emt 0:00:13]} Kg4 {[%emt 0:00:02]} 77. Nh7 {[%emt 0:00:20]} Kxh4 {[%emt 0:00:03]} 78. Nf6 {[%emt 0:00:04]} Be6 {[%emt 0:00:02]} 79. Ne4 {[%emt 0:00:05]} Kg4 {[%emt 0:00:06]} 80. Nf2+ {[%emt 0:00:03]} Kf3 {[%emt 0:00:04]} 81. Nd3 {[%emt 0:00:12]} h4 {[%emt 0:00:03]} 0-1

[Event "African Online-ch Women 2021"]
[Site "Online"]
[Date "2021.02.01"]
[Round "7.9"]
[White "Wanjiru, Lucy"]
[Black "Du Plessis, Anika"]
[Result "1-0"]
[ECO "B22"]
[WhiteElo "1623"]
[BlackElo "1541"]
[Annotator "NA RC"]
[PlyCount "119"]
[EventDate "2021.02.01"]
[EventType "swiss"]
[EventCountry "NET"]
[SourceTitle "playchess.com"]
[Source "ChessBase"]
[SourceQuality "1"]
[TimeControl "1500+10"]

1. e4 {[%emt 0:00:00]} c5 {[%emt 0:00:05]} 2. c3 {[%emt 0:00:05]} d6 {[%emt 0:01:38]} 3. d4 {[%emt 0:00:06]} cxd4 {[%emt 0:00:02]} 4. cxd4 {[%emt 0:00:02]} g6 {[%emt 0:00:02]} 5. Nf3 {[%emt 0:00:04]} Bg7 {[%emt 0:00:02]} 6. Nc3 {[%emt 0:00:15]} Nf6 {[%emt 0:00:03]} 7. Be2 {[%emt 0:00:06]} O-O {[%emt 0:00:03]} 8. O-O {[%emt 0:00:02]} Nc6 {[%emt 0:00:05]} 9. a3 {[%emt 0:01:34]} Bg4 {[%emt 0:00:41]} 10. h3 {[%emt 0:00:28]} Bxf3 {[%emt 0:00:03]} 11. Bxf3 {[%emt 0:00:02]} e5 {[%emt 0:00:15]} 12. d5 {[%emt 0:00:53]} Nd4 {[%emt 0:00:05]} 13. Be3 {[%emt 0:00:19]} Nxf3+ {[%emt 0:00:21]} 14. Qxf3 {[%emt 0:00:04]} Nd7 {[%emt 0:00:47]} 15. Qe2 {[%emt 0:00:03]} a6 {[%emt 0:00:16]} 16. Rac1 {[%emt 0:00:08]} Rc8 {[%emt 0:00:04]} 17. Qd2 {[%emt 0:00:28]} Nc5 {[%emt 0:00:11]} 18. Qd1 {[%emt 0:01:02]} f5 {[%emt 0:02:18]} 19. f3 {[%emt 0:01:06]} fxe4 {[%emt 0:01:09]} 20. Bxc5 {[%emt 0:00:07]} Rxc5 {[%emt 0:00:09]} 21. Nxe4 {[%emt 0:00:05]} Rxc1 {[%emt 0:00:20]} 22. Qxc1 {[%emt 0:00:07]} Rf4 {[%emt 0:03:18]} 23. Qc2 {[%emt 0:00:45]} Bh6 {[%emt 0:00:48]} 24. g3 {[%emt 0:01:37]} Rf7 {[%emt 0:00:31]} 25. Kg2 {[%emt 0:00:14]} Be3 {[%emt 0:01:14]} 26. Qd3 {[%emt 0:00:38]} Bd4 {[%emt 0:00:37]} 27. b3 {[%emt 0:00:15]} Kg7 {[%emt 0:00:59]} 28. Rc1 {[%emt 0:00:45]} h6 {[%emt 0:00:35]} 29. Rc2 {[%emt 0:01:23]} Rc7 {[%emt 0:00:28]} 30. a4 {[%emt 0:00:50]} Qc8 {[%emt 0:00:45]} 31. Rc4 {[%emt 0:00:12]} b5 {[%emt 0:00:17]} 32. axb5 {[%emt 0:00:10]} axb5 {[%emt 0:00:03]} 33. Nxd6 {[%emt 0:00:13]} Qd7 {[%emt 0:00:30]} 34. Nxb5 {[%emt 0:00:23]} Rxc4 {[%emt 0:00:25]} 35. bxc4 {[%emt 0:00:18]} Bc5 {[%emt 0:00:04]} 36. Qe2 {[%emt 0:00:12]} Kf6 {[%emt 0:00:22]} 37. Nc3 {[%emt 0:00:27]} Bd4 {[%emt 0:00:22]} 38. Ne4+ {[%emt 0:00:16]} Ke7 {[%emt 0:00:04]} 39. f4 {[%emt 0:01:13]} Qa7 {[%emt 0:00:23]} 40. fxe5 {[%emt 0:00:14]} Bxe5 {[%emt 0:00:05]} 41. Ng5 {[%emt 0:00:15]} Kf6 {[%emt 0:00:22]} 42. Nf3 {[%emt 0:00:11]} Bc3 {[%emt 0:00:57]} 43. Qe6+ {[%emt 0:00:18]} Kg7 {[%emt 0:00:04]} 44. Nh4 {[%emt 0:00:39]} Qa2+ {[%emt 0:00:30]} 45. Kf3 {[%emt 0:00:06]} Qb1 {[%emt 0:00:07]} 46. Qe2 {[%emt 0:02:08]} g5 {[%emt 0:01:09]} 47. Ng2 {[%emt 0:02:29]} Qf5+ {[%emt 0:00:40]} 48. Ke3 {[%emt 0:00:14]} Qxh3 {[%emt 0:00:42]} 49. Qf3 {[%emt 0:00:17]} Be5 {[%emt 0:01:41]} 50. Ke4 {[%emt 0:01:01]} Qxg3 {[%emt 0:00:33]} 51. Qxg3 {[%emt 0:00:04]} Bxg3 {[%emt 0:00:02]} 52. Kf5 {[%emt 0:00:08]} Kf7 {[%emt 0:00:11]} 53. c5 {[%emt 0:00:24]} Bf2 {[%emt 0:01:09]} 54. c6 {[%emt 0:00:12]} Ke7 {[%emt 0:00:02]} 55. Kg6 {[%emt 0:00:15]} Kd6 {[%emt 0:00:06]} 56. Kxh6 {[%emt 0:00:02]} g4 {[%emt 0:00:03]} 57. Kh5 {[%emt 0:00:14]} g3 {[%emt 0:00:03]} 58. Kg4 {[%emt 0:00:15]} Be1 {[%emt 0:00:22]} 59. Kf3 {[%emt 0:00:33]} Kc7 {[%emt 0:00:47]} 60. Nxe1 {[%emt 0:00:09]} 1-0